bitfinex/quotes_SOLUSD_20251214
["timestamp","ask_amount","ask_price","bid_price","bid_amount"]
[1765683133944,0.80216157,133.08,133.05,4.10365072]
[1765683134242,15.92765556,133.07,133.05,4.10365072]
[1765683134743,0.66,133.06,133.04,3.39365072]
[1765683134922,8.24,133.05,133.03,3.39365072]
[1765683135245,11.63365072,133.05,133.03,4.10365072]
[1765683136230,19.15011104,133.05,133.03,4.10365072]
[1765683136550,0.66,133.04,133.02,0.17]
[1765683136742,8.24,133.03,133.02,0.17]
[1765683137044,8.9,133.03,133.02,0.17]
[1765683137426,12.39365072,133.03,133.02,0.17]
[1765683139420,19.91075212,133.03,133.02,0.17]
[1765683143251,19.91075212,133.03,133.02,3.56365072]
[1765683143549,19.91075212,133.03,133.02,4.27365072]
[1765683143550,19.25075212,133.03,133.02,4.27365072]
[1765683145656,19.25075212,133.03,133.02,0.88]
[1765683145859,19.25075212,133.03,133.02,4.27365072]
[1765683147934,11.01075212,133.03,133.02,4.27365072]
[1765683148136,19.25075212,133.03,133.02,4.27365072]
[1765683149880,11.01075212,133.03,133.02,4.27365072]
[1765683150056,19.25075212,133.03,133.02,4.27365072]
[1765683150759,19.25075212,133.03,133.02,4.27192759]
[1765683151837,11.01075212,133.03,133.02,4.27192759]
[1765683152037,19.25075212,133.03,133.02,0.88]
[1765683152543,19.25075212,133.03,133.02,4.27192759]
[1765683153546,11.01075212,133.03,133.02,4.27192759]
[1765683153754,19.25075212,133.03,133.02,4.27192759]
[1765683154873,7.5171014,133.03,133.02,4.27192759]
[1765683155069,15.7571014,133.03,133.02,4.27192759]
[1765683157059,15.7571014,133.03,133.02,0.88]
[1765683157263,15.7571014,133.03,133.02,4.27192759]
[1765683160835,18.42719714,133.04,133.02,4.27192759]
[1765683161039,18.42719714,133.04,133.03,3.39192759]
[1765683161264,15.75653638,133.04,133.03,3.39192759]
[1765683161640,16.41653638,133.04,133.03,3.39192759]
[1765683161968,19.80846397,133.04,133.03,3.39192759]
[1765683171869,19.80846397,133.04,133.02,4.27192759]
[1765683173683,19.14846397,133.04,133.02,4.27192759]
[1765683174186,19.80846397,133.04,133.03,3.39192759]
[1765683174581,19.14846397,133.04,133.03,3.39192759]
[1765683174986,19.14846397,133.04,133.02,4.27192759]
[1765683176774,19.83846397,133.04,133.02,4.27192759]
[1765683177883,3.39192759,133.04,133.03,0.71]
[1765683178076,8.24,133.04,133.03,0.71]
[1765683179081,15.75653638,133.04,133.02,4.27192759]
[1765683179280,16.44653638,133.04,133.02,4.27192759]
[1765683180488,15.75653638,133.04,133.02,4.27192759]
[1765683181892,15.75653638,133.04,133.02,3.05091956]
[1765683185695,15.75653638,133.04,133.02,3.05084147]
[1765683186294,15.75653638,133.04,133.02,0.88]
[1765683186495,15.75653638,133.04,133.02,3.05084147]
[1765683187193,15.75653638,133.04,133.02,0.88]
[1765683187417,15.75653638,133.04,133.02,3.05084147]
[1765683187595,15.75653638,133.04,133.02,0.88]
[1765683187897,15.75653638,133.04,133.02,3.05084147]
[1765683188492,15.75653638,133.04,133.02,0.88]
[1765683188681,15.75653638,133.04,133.02,3.05084147]
[1765683194307,16.44653638,133.04,133.02,0.88]
[1765683194487,0.69,133.03,133.02,0.17]
[1765683194680,8.20858278,133.03,133.02,0.17]
[1765683195297,15.72568418,133.03,133.02,0.17]
[1765683195710,26.99079371,133.03,133.02,0.17]
[1765683198682,26.99079371,133.03,133.02,1e-08]
[1765683202224,26.99079371,133.03,133.01,1e-08]
[1765683202225,9.49994492,133.02,133.01,1e-08]
[1765683202396,20.19510953,133.02,133.01,1e-08]
[1765683202915,23.20727113,133.02,133.01,1e-08]
[1765683203418,36.25436233,133.02,133.01,1e-08]
[1765683204219,36.25436233,133.02,132.98,0.1]
[1765683204220,21.85703612,132.99,132.98,0.1]
[1765683204386,0.28432314,132.97,132.92,0.68]
[1765683204583,2.17084147,132.95,132.92,0.68]
[1765683204786,8.24,132.94,132.92,0.68]
[1765683205404,8.24,132.93,132.92,0.68]
[1765683206413,8.24,132.93,132.92,0.7]
[1765683206621,8.24,132.94,132.92,2.87084147]
[1765683206801,8.24,132.94,132.93,2.17084147]
[1765683206992,8.24,132.94,132.93,2.87084147]
[1765683207192,8.24,132.94,132.93,0.7]
[1765683207393,8.24,132.94,132.93,2.87084147]
[1765683207826,8.24,132.94,132.93,0.7]
[1765683208197,8.24,132.94,132.93,2.87084147]
[1765683208530,8.24,132.94,132.93,0.7]
[1765683213301,15.76219046,132.94,132.9,0.1]
[1765683213619,33.69522239,132.94,132.92,0.7]
[1765683213818,15.76219046,132.94,132.92,0.7]
[1765683214029,8.24,132.93,132.92,0.7]
[1765683216208,7.52172313,132.95,132.92,2.87084147]
[1765683216411,8.24,132.95,132.92,10.39406153]
[1765683216627,8.24,132.95,132.93,0.7]
[1765683218033,15.76169962,132.95,132.93,0.7]
[1765683220532,2.17084147,132.98,132.93,0.7]
[1765683220728,15.76096424,132.97,132.93,0.7]
[1765683221310,16.48096424,132.97,132.93,0.7]
[1765683222130,16.48096424,132.97,132.93,2.87370989]
[1765683222321,8.24,132.97,132.94,2.87370989]
[1765683222524,8.24,132.97,132.94,10.39542491]
[1765683222832,8.24,132.97,132.95,0.7]
[1765683224243,8.24,132.97,132.95,10.39531613]
[1765683224438,8.24,132.99,132.96,2.17370989]
[1765683224642,8.24,132.99,132.97,2.17370989]
[1765683224839,8.24,132.99,132.98,0.7]
[1765683226632,15.75846043,133.01,132.98,0.7]
[1765683227034,10.41531613,133.02,132.99,2.17370989]
[1765683227035,17.21303305,133.02,132.99,2.17370989]
[1765683227226,7.51771692,133.02,133.0,0.7]
[1765683228217,7.51771692,133.02,133.0,2.87370989]
[1765683228714,7.5171014,133.03,133.01,2.87370989]
[1765683228922,8.24,133.04,133.01,2.87370989]
[1765683229228,8.24,133.07,133.03,15.22080109]
[1765683229441,15.75484628,133.07,133.04,2.87370989]
[1765683229956,15.75484628,133.07,133.05,0.7]
[1765683232150,34.72432308,133.1,133.05,2.87370989]
[1765683232354,8.24,133.09,133.05,2.87370989]
[1765683232643,2.17370989,133.08,133.04,0.7]
[1765683232946,9.6885517,133.07,133.04,0.7]
[1765683233142,8.24,133.06,133.04,0.7]
[1765683233849,15.75559014,133.06,133.04,0.7]
[1765683234040,16.47559014,133.06,133.04,0.7]
[1765683236547,16.47559014,133.06,133.03,0.71]
[1765683236744,15.75559014,133.06,133.03,2.88370989]
[1765683236950,16.46559014,133.06,133.03,2.88370989]
[1765683237469,16.46559014,133.06,133.03,0.71]
[1765683241661,7.51749171,133.07,133.04,20.56362758]
[1765683241846,8.24,133.06,133.04,2.17370989]
[1765683242040,8.24,133.06,133.05,0.71]
[1765683248442,8.24,133.06,133.05,4.10080056]
[1765683248644,15.75472688,133.08,133.05,4.10080056]
[1765683248861,15.75472688,133.08,133.06,0.71]
[1765683249468,8.24,133.08,133.06,11.61616217]
[1765683249959,8.24,133.08,133.07,0.71]
[1765683251576,0.71,133.12,133.07,0.71]
[1765683251788,8.24,133.11,133.07,4.10080056]
[1765683252167,8.95,133.11,133.08,0.71]
[1765683253284,16.46279841,133.11,133.08,0.71]
[1765683255978,4.10080056,133.1,133.05,0.71]
[1765683256294,8.24,133.09,133.05,0.71]
[1765683256454,8.95,133.09,133.05,0.71]
[1765683256953,16.46420814,133.09,133.05,0.71]
[1765683257754,16.46420814,133.09,133.05,4.10033819]
[1765683257954,16.46420814,133.09,133.06,0.71]
[1765683258367,0.71,133.08,133.05,3.39033819]
[1765683258565,0.71,133.08,133.04,4.10033819]
[1765683258777,0.71,133.08,133.04,0.71]
[1765683258957,7.51484181,133.07,133.04,0.71]
[1765683259359,8.22484181,133.07,133.04,0.71]
[1765683262190,0.71,133.06,133.03,0.71]
[1765683264761,8.19484181,133.07,133.03,11.61738019]
[1765683265162,8.19484181,133.07,133.04,0.72]
[1765683266797,7.51484181,133.07,133.04,0.72]
[1765683266973,8.23543704,133.06,133.04,0.72]
[1765683267170,15.75543704,133.06,133.03,0.68]
[1765683267383,16.47543704,133.06,133.03,0.68]
[1765683272390,8.24,133.06,133.03,8.19700063]
[1765683272585,8.24,133.06,133.03,11.58733882]
[1765683272787,8.24,133.06,133.04,0.68]
[1765683273688,8.96,133.06,133.04,0.68]
[1765683273907,16.47542018,133.06,133.04,0.68]
[1765683278715,16.47542018,133.06,133.02,7.51744006]
[1765683279014,0.72,133.05,133.01,72.78843022]
[1765683279213,0.72,133.05,133.01,10.90843022]
[1765683279375,0.72,133.05,133.01,11.58843022]
[1765683279807,0.72,133.05,133.02,0.68]
[1765683280314,8.23625007,133.05,133.02,0.68]
[1765683280475,0.72,133.04,133.02,0.68]
[1765683282324,8.23662911,133.04,133.0,7.51864245]
[1765683282530,8.23662911,133.04,132.99,7.51920186]
[1765683282700,8.96,133.03,132.99,11.58954005]
[1765683283220,0.72,133.02,133.0,0.68]
[1765683290327,8.23769339,133.02,132.99,8.19920186]
[1765683292734,8.23769339,133.02,133.0,0.68]
[1765683292938,8.23769339,133.02,132.99,7.51920186]
[1765683292939,8.23769339,133.02,132.99,8.19920186]
[1765683293715,8.23769339,133.02,133.0,0.68]
[1765683294033,8.23769339,133.02,132.99,7.51920186]
[1765683294237,8.23769339,133.02,132.99,8.19920186]
[1765683294736,0.72,133.01,132.97,4.07363713]
[1765683294922,0.72,133.01,132.97,11.59381077]
[1765683295124,0.72,133.01,132.98,0.68]
[1765683297640,8.17769339,133.02,132.98,0.68]
[1765683298041,7.51769339,133.02,132.98,0.68]
[1765683298344,0.66,133.01,132.98,0.68]
[1765683301143,7.51769339,133.02,132.98,11.59355778]
[1765683301346,8.24,133.02,132.99,3.39363713]
[1765683301525,7.51733124,133.03,133.0,3.39363713]
[1765683301842,18.79271715,133.04,133.01,3.39363713]
[1765683301843,15.75677847,133.04,133.01,3.39363713]
[1765683302012,7.51677847,133.04,133.01,4.09363713]
[1765683302212,7.51677847,133.04,133.02,0.7]
[1765683302416,7.51677847,133.04,133.02,4.09363713]
[1765683304660,8.17677847,133.04,133.02,0.7]
[1765683308425,8.24,133.05,133.02,10.38825526]
[1765683308756,8.24,133.05,133.03,2.17087838]
[1765683308921,8.17589888,133.06,133.03,2.87087838]
[1765683309122,8.17589888,133.06,133.04,0.7]
[1765683315298,8.17589888,133.06,133.03,0.7]
[1765683315299,7.51589888,133.06,133.03,0.7]
[1765683315467,0.66,133.05,133.03,0.7]
[1765683316968,8.17589888,133.06,133.03,0.7]
[1765683350549,8.17589888,133.06,133.03,61.9]
[1765683350550,7.51589888,133.06,133.03,61.9]
[1765683350946,7.51589888,133.06,133.04,0.68]
[1765683351146,8.21589888,133.06,133.04,0.68]
[1765683352698,7.5145309,133.08,133.05,2.17050294]
[1765683352819,8.2145309,133.08,133.06,2.17050294]
[1765683353144,15.7538788,133.09,133.06,2.17050294]
[1765683353331,15.7538788,133.09,133.07,0.68]
[1765683354133,16.4538788,133.09,133.07,0.68]
[1765683357467,16.4538788,133.09,133.06,2.17050294]
[1765683357654,16.4538788,133.09,133.06,2.88050294]
[1765683360582,15.7538788,133.09,133.06,2.17050294]
[1765683360753,15.7538788,133.09,133.07,0.71]
[1765683361284,16.4238788,133.09,133.06,0.71]
[1765683361576,16.4238788,133.09,133.04,2.88050294]
[1765683361577,0.67,133.08,133.04,2.88050294]
[1765683361797,8.24,133.07,133.05,0.71]
[1765683362078,8.24,133.07,133.05,2.88050294]
[1765683362379,8.24,133.07,133.05,2.87952272]
[1765683362581,8.24,133.07,133.06,0.71]
[1765683365484,15.753148,133.1,133.06,2.87952272]
[1765683365665,16.423148,133.1,133.06,2.87952272]
[1765683365982,16.423148,133.1,133.07,0.71]
[1765683366476,8.18397248,133.09,133.07,0.71]
[1765683368576,7.51397248,133.09,133.07,0.71]
[1765683368777,8.24,133.1,133.08,3.3892713]
[1765683369279,8.24,133.1,133.09,0.71]
[1765683369478,8.24,133.1,133.08,0.71]
[1765683369664,15.75319038,133.1,133.08,0.71]
[1765683371988,16.42319038,133.1,133.08,0.71]
[1765683373564,15.75319038,133.1,133.08,0.71]
[1765683373764,16.42319038,133.1,133.08,0.71]
[1765683378186,8.24,133.1,133.08,0.71]
[1765683378390,8.24,133.1,133.08,4.0992713]
[1765683378800,38.32135927,133.12,133.09,4.0992713]
[1765683378993,15.75224135,133.12,133.1,0.71]
[1765683379395,15.75224135,133.12,133.09,0.71]
[1765683379565,0.67,133.11,133.08,61.91]
[1765683379965,8.18288214,133.11,133.08,61.91]
[1765683383498,8.18288214,133.11,133.08,0.71]
[1765683387808,8.18288214,133.11,133.08,4.0992713]
[1765683387978,8.18288214,133.11,133.09,0.72]
[1765683397325,8.18288214,133.11,133.09,4.1092713]
[1765683397514,8.18288214,133.11,133.09,4.10821333]
[1765683400837,8.18288214,133.11,133.09,0.72]
[1765683404754,7.51288214,133.11,133.09,4.10821333]
[1765683405260,7.51288214,133.11,133.1,0.72]
[1765683405861,7.51288214,133.11,133.09,4.10821333]
[1765683406364,8.19288214,133.11,133.09,4.10821333]
[1765683414877,7.51288214,133.11,133.1,0.72]
[1765683415174,7.51199066,133.13,133.1,4.10821333]
[1765683415350,7.51199066,133.13,133.11,3.38821333]
[1765683415550,7.51199066,133.13,133.11,4.10821333]
[1765683415748,0.7,133.12,133.1,3.38821333]
[1765683415952,8.21222577,133.12,133.1,3.38821333]
[1765683416353,8.21222577,133.12,133.1,4.10821333]
[1765683420461,0.7,133.11,133.09,3.38821333]
[1765683420658,0.7,133.11,133.09,4.10821333]
[1765683421492,8.21222577,133.12,133.1,0.72]
[1765683421693,8.24,133.12,133.1,4.10821333]
[1765683422078,8.24,133.12,133.11,4.10821333]
[1765683422278,8.21135964,133.14,133.11,4.10821333]
[1765683422469,15.75135964,133.14,133.12,4.10821333]
[1765683422669,15.75135964,133.14,133.12,0.72]
[1765683422988,16.45135964,133.14,133.12,0.72]
[1765683424795,15.75135964,133.14,133.12,4.10821333]
[1765683425177,8.24,133.14,133.12,4.10821333]
[1765683425995,8.24,133.14,133.13,0.72]
[1765683427581,8.24,133.14,133.13,4.10821333]
[1765683427903,8.24,133.14,133.13,3.38821333]
[1765683429396,8.24,133.14,133.13,4.10821333]
[1765683429904,8.24,133.14,133.13,2.88724494]
[1765683430214,8.24,133.14,133.13,2.16724494]
[1765683430402,8.94,133.14,133.13,2.16724494]
[1765683431797,8.24,133.14,133.13,2.88724494]
[1765683432310,8.24,133.14,133.13,2.16724494]
[1765683432690,8.24,133.14,133.13,2.16724729]
[1765683433792,8.24,133.14,133.13,2.88724729]
[1765683433993,8.24,133.14,133.13,2.16724729]
[1765683437414,8.24,133.14,133.13,2.88724729]
[1765683438008,8.24,133.14,133.13,2.16724729]
[1765683446424,8.92,133.14,133.1,83.76232843]
[1765683446614,2.84724729,133.13,133.08,2.85724729]
[1765683446811,10.38724729,133.12,133.08,0.69]
[1765683447113,11.06724729,133.12,133.08,0.69]
[1765683447322,0.68,133.11,133.08,2.85724729]
[1765683448922,8.19283237,133.11,133.09,0.69]
[1765683449318,7.51283237,133.11,133.09,2.85724729]
[1765683450820,38.29963975,133.12,133.1,2.85724729]
[1765683451003,15.73221959,133.12,133.11,2.16724729]
[1765683451322,15.73221959,133.12,133.11,2.85724729]
[1765683451703,15.73221959,133.12,133.1,2.85724729]
[1765683452408,16.41221959,133.12,133.1,2.85724729]
[1765683453824,15.73221959,133.12,133.1,2.85724729]
[1765683455326,15.73221959,133.12,133.1,0.69]
[1765683455510,15.73221959,133.12,133.1,2.85724729]
[1765683456928,16.41221959,133.12,133.1,2.85724729]
[1765683457222,15.73221959,133.12,133.07,7.5147313]
[1765683457429,0.68,133.11,133.09,2.16724729]
[1765683458149,8.1947313,133.11,133.09,2.16724729]
[1765683458504,8.1947313,133.11,133.07,7.5147313]
[1765683458505,8.1947313,133.11,133.08,2.16724729]
[1765683458704,0.68,133.1,133.08,2.16724729]
[1765683459136,0.68,133.1,133.08,2.85724729]
[1765683460112,15.02744561,133.11,133.08,2.85724729]
[1765683460317,15.70744561,133.11,133.08,2.85724729]
[1765683467639,15.70744561,133.11,133.08,2.85866865]
[1765683471436,15.02744561,133.11,133.09,2.85866865]
[1765683471641,15.73227579,133.12,133.09,2.85866865]
[1765683471937,36.99936699,133.12,133.1,0.69]
[1765683472141,37.67936699,133.12,133.1,0.69]
[1765683473440,36.99936699,133.12,133.1,0.69]
[1765683473943,37.67936699,133.12,133.1,2.85866865]
[1765683478546,36.99936699,133.12,133.09,2.86866865]
[1765683478747,0.67,133.11,133.09,2.86866865]
[1765683480021,8.18265783,133.11,133.09,2.86866865]
[1765683489456,8.18265783,133.11,133.09,0.7]
[1765683489634,8.18265783,133.11,133.09,2.86866865]
[1765683490035,8.18265783,133.11,133.09,4.08792541]
[1765683492858,0.67,133.11,133.09,4.08792541]
[1765683493058,37.66918882,133.12,133.09,4.08792541]
[1765683493850,0.67,133.11,133.09,4.08792541]
[1765683494567,36.99918882,133.12,133.09,4.08792541]
[1765683494770,37.66918882,133.12,133.07,7.51484181]
[1765683495061,37.66918882,133.12,133.09,4.08792541]
[1765683495269,0.67,133.11,133.09,4.08792541]
[1765683502802,0.67,133.11,133.09,4.08798132]
[1765683508061,16.39209762,133.12,133.09,4.08798132]
[1765683508260,16.39209762,133.12,133.1,0.71]
[1765683508965,8.22,133.12,133.1,11.61093551]
[1765683509166,30.80742016,133.14,133.11,3.38798132]
[1765683509471,8.9,133.14,133.12,3.38798132]
[1765683509677,8.9,133.14,133.12,4.09798132]
[1765683511160,8.9,133.14,133.13,3.38798132]
[1765683511772,8.24,133.14,133.13,3.38798132]
[1765683512490,8.24,133.14,133.13,4.09798132]
[1765683512962,8.24,133.14,133.13,3.38798132]
[1765683513295,8.24,133.14,133.13,4.09798132]
[1765683515400,8.24,133.14,133.13,3.38798132]
[1765683515582,8.9,133.14,133.13,3.38798132]
[1765683517399,8.24,133.14,133.12,4.09798132]
[1765683517700,8.24,133.14,133.13,3.38798132]
[1765683518486,8.24,133.14,133.13,4.09798132]
[1765683520908,8.24,133.14,133.13,3.38798132]
[1765683521406,8.24,133.14,133.13,4.09798132]
[1765683521985,16.58996776,133.16,133.13,4.09798132]
[1765683522184,16.58996776,133.16,133.14,4.09798132]
[1765683522888,16.58996776,133.16,133.14,0.71]
[1765683523097,16.58996776,133.16,133.14,4.09798132]
[1765683523401,16.58996776,133.16,133.14,0.71]
[1765683523602,16.58996776,133.16,133.14,4.09798132]
[1765683524509,16.58996776,133.16,133.14,3.38798132]
[1765683526207,16.58996776,133.16,133.14,4.09798132]
[1765683526591,15.58996776,133.16,133.14,4.09798132]
[1765683529585,15.58996776,133.16,133.14,3.38798132]
[1765683531786,15.58996776,133.16,133.14,4.09798132]
[1765683532987,15.58996776,133.16,133.14,3.38798132]
[1765683533709,8.88,133.16,133.14,4.09798132]
[1765683535315,16.38996776,133.16,133.14,4.09798132]
[1765683536618,16.38996776,133.16,133.14,3.38798132]
[1765683537924,16.38996776,133.16,133.14,3.3855407]
[1765683538421,16.38996776,133.16,133.14,4.0555407]
[1765683543628,16.38996776,133.16,133.14,3.3855407]
[1765683543812,16.38996776,133.16,133.14,4.0555407]
[1765683546029,16.38996776,133.16,133.14,0.67]
[1765683546234,16.38996776,133.16,133.14,4.0555407]
[1765683549205,16.38996776,133.16,133.14,3.3855407]
[1765683550318,16.38996776,133.16,133.14,4.0555407]
[1765683551513,8.16046363,133.15,133.12,61.2]
[1765683551713,8.16046363,133.15,133.14,3.3855407]
[1765683551914,7.51046363,133.15,133.14,2.1668521]
[1765683552323,15.73000702,133.16,133.14,2.1668521]
[1765683552521,0.65,133.15,133.14,2.1668521]
[1765683554233,15.73000702,133.16,133.14,2.1668521]
[1765683554445,16.38000702,133.16,133.14,2.1668521]
[1765683555319,18.97228706,133.15,133.14,2.1668521]
[1765683558035,19.62228706,133.15,133.14,2.1668521]
[1765683561240,18.97228706,133.15,133.14,2.1668521]
[1765683572348,18.97228706,133.15,133.13,2.8368521]
[1765683573151,18.97228706,133.15,133.13,2.83694978]
[1765683584577,0.69,133.14,133.12,61.2]
[1765683584756,8.22,133.13,133.12,61.2]
[1765683585151,31.47402542,133.13,133.12,61.2]
[1765683585677,30.78402542,133.13,133.12,61.2]
[1765683588156,30.78402542,133.13,133.12,63.36694978]
[1765683588379,30.78402542,133.13,133.12,2.16694978]
[1765683592985,30.78402542,133.13,133.11,0.69]
[1765683593187,30.78402542,133.13,133.12,2.16694978]
[1765683594190,30.78402542,133.13,133.12,0.66694978]
[1765683597594,31.49402542,133.13,133.11,0.69]
[1765683597764,31.49402542,133.13,133.12,2.16694978]
[1765683597964,30.78402542,133.13,133.12,2.16694978]
[1765683598979,31.49402542,133.13,133.12,2.16694978]
[1765683599765,31.49402542,133.13,133.11,2.85694978]
[1765683601089,30.78402542,133.13,133.11,2.85694978]
[1765683604093,30.78402542,133.13,133.12,2.16694978]
[1765683604274,8.22,133.13,133.12,2.16694978]
[1765683604474,8.22,133.13,133.12,2.86694978]
[1765683604684,8.93,133.15,133.12,2.86694978]
[1765683604893,8.93,133.15,133.13,2.16694978]
[1765683605190,30.78232843,133.15,133.13,2.16694978]
[1765683605410,0.71,133.14,133.13,2.16694978]
[1765683605880,8.22210289,133.14,133.13,2.16694978]
[1765683606380,7.51210289,133.14,133.13,2.16694978]
[1765683606584,15.73032771,133.15,133.13,2.86694978]
[1765683606889,8.22,133.15,133.14,2.86694978]
[1765683607270,24.86032771,133.17,133.14,2.86694978]
[1765683607472,33.07961106,133.17,133.15,2.16694978]
[1765683608211,32.36961106,133.17,133.15,2.16694978]
[1765683608371,0.71,133.16,133.15,2.16694978]
[1765683610007,0.71,133.16,133.15,2.16651556]
[1765683610716,8.2198846,133.16,133.13,61.2]
[1765683610879,8.22,133.15,133.13,61.2]
[1765683611073,8.93,133.15,133.13,61.2]
[1765683611274,0.71,133.14,133.13,61.2]
[1765683611477,8.93,133.15,133.12,64.06651556]
[1765683611708,31.49063169,133.15,133.12,64.06651556]
[1765683612899,0.71,133.14,133.12,61.2]
[1765683613221,8.22,133.13,133.12,61.2]
[1765683614418,30.78402542,133.13,133.12,61.2]
[1765683615091,30.78402542,133.13,133.11,0.7]
[1765683615824,30.78402542,133.13,133.11,4.08737306]
[1765683616292,8.22,133.13,133.11,4.08737306]
[1765683617814,8.93,133.13,133.11,4.08737306]
[1765683618321,8.93,133.13,133.12,3.38737306]
[1765683620322,8.93,133.13,133.11,4.08737306]
[1765683620519,0.71,133.13,133.11,4.08737306]
[1765683620722,15.73117642,133.14,133.11,4.08737306]
[1765683620929,0.71,133.13,133.11,4.08737306]
[1765683621300,16.44117642,133.14,133.11,4.08737306]
[1765683621522,16.44117642,133.14,133.12,3.38737306]
[1765683622343,16.44117642,133.14,133.12,4.08737306]
[1765683622344,15.73117642,133.14,133.12,4.08737306]
[1765683622830,8.22,133.14,133.13,3.38737306]
[1765683624404,8.22053416,133.15,133.13,3.38737306]
[1765683624705,16.44053416,133.15,133.13,3.38737306]
[1765683629739,16.44053416,133.15,133.12,0.7]
[1765683629918,16.44053416,133.15,133.13,3.38737306]
[1765683638040,16.44053416,133.15,133.13,4.10737306]
[1765683641914,15.73053416,133.15,133.14,0.72]
[1765683642946,15.73053416,133.15,133.14,4.10737306]
[1765683643317,16.41053416,133.15,133.13,4.10737306]
[1765683644024,16.41053416,133.15,133.13,3.38737306]
[1765683645148,16.41053416,133.15,133.13,3.38616444]
[1765683645526,16.41053416,133.15,133.13,4.10616444]
[1765683645938,16.41053416,133.15,133.13,0.72]
[1765683647044,0.68,133.14,133.11,65.30616444]
[1765683647453,14.91053416,133.15,133.12,0.72]
[1765683648332,14.91053416,133.15,133.11,61.2]
[1765683648537,18.2966986,133.15,133.11,61.2]
[1765683648738,22.56572266,133.14,133.11,61.2]
[1765683648945,8.22,133.13,133.11,61.2]
[1765683649252,6.72,133.13,133.11,61.2]
[1765683649558,14.80191615,133.13,133.11,61.2]
[1765683650759,14.80191615,133.13,133.1,4.10616444]
[1765683651055,14.80191615,133.13,133.1,0.72]
[1765683651258,14.80191615,133.13,133.1,4.10616444]
[1765683652462,14.80191615,133.13,133.1,3.38616444]
[1765683652638,14.80191615,133.13,133.11,0.72]
[1765683657161,14.23191615,133.13,133.11,0.72]
[1765683657361,14.23191615,133.13,133.11,4.10616444]
[1765683660062,14.80191615,133.13,133.11,4.10616444]
[1765683663765,14.80191615,133.13,133.11,0.72]
[1765683669675,14.23191615,133.13,133.11,0.72]
[1765683673853,13.86691615,133.13,133.11,0.72]
[1765683674657,13.86691615,133.13,133.11,4.10616444]
[1765683675876,13.86691615,133.13,133.11,2.88781103]
[1765683676082,13.86691615,133.13,133.12,0.7]
[1765683676453,33.21273289,133.13,133.12,0.7]
[1765683679406,33.21273289,133.13,133.11,2.86781103]
[1765683679687,33.21273289,133.13,133.11,2.16781103]
[1765683679887,13.86691615,133.13,133.12,0.7]
[1765683680057,13.86691615,133.13,133.11,2.16781103]
[1765683680263,21.38005752,133.13,133.11,2.86779334]
[1765683680993,13.86691615,133.13,133.11,2.86779334]
[1765683681305,21.38005752,133.12,133.11,2.86779334]
[1765683681996,21.38005752,133.12,133.11,0.7]
[1765683682205,21.38005752,133.12,133.11,2.86779334]
[1765683684788,21.38005752,133.12,133.11,10.38037691]
[1765683684999,8.22,133.15,133.11,10.38037691]
[1765683685291,8.22,133.15,133.12,2.86779334]
[1765683685592,18.97369236,133.14,133.12,2.86779334]
[1765683685769,18.97369236,133.14,133.13,2.84779334]
[1765683688891,8.22,133.15,133.13,2.84779334]
[1765683689096,8.22,133.15,133.14,2.84779334]
[1765683689301,27.19369236,133.15,133.14,2.84779334]
[1765683691304,27.19369236,133.15,133.14,2.16779334]
[1765683692300,27.19369236,133.15,133.14,2.84779334]
[1765683693405,15.92920379,133.17,133.14,2.84779334]
[1765683693602,22.55893521,133.16,133.15,0.68]
[1765683693904,22.55893521,133.16,133.15,2.84779334]
[1765683696205,15.92920379,133.17,133.15,2.84779334]
[1765683696406,38.488139,133.17,133.15,2.84779334]
[1765683697508,39.058139,133.17,133.15,2.84779334]
[1765683698110,38.488139,133.17,133.15,2.84779334]
[1765683700281,39.058139,133.17,133.15,2.84779334]
[1765683700905,38.488139,133.17,133.15,2.84779334]
[1765683701310,38.488139,133.17,133.16,0.68]
[1765683702213,38.488139,133.17,133.15,2.84779334]
[1765683702514,39.058139,133.17,133.15,2.84779334]
[1765683702690,38.488139,133.17,133.16,2.84779334]
[1765683703097,38.488139,133.17,133.16,2.16779334]